fUSD/lending_fUSD_20250622
["ID","MTS","AMOUNT","RATE_DAILY","PERIOD"]
[367010494,1750617948917,-500.0,0.00039999,31]
[367010495,1750617948944,-500.0,0.00039999,31]
[367010496,1750617948971,-500.0,0.00039999,31]
[367010497,1750617948999,-500.0,0.00039999,31]
[367010498,1750617949026,-500.0,0.00039999,31]
[367010499,1750617949053,-500.0,0.00039999,31]
[367010500,1750617949079,-500.0,0.00039999,31]
[367010501,1750617949458,-500.0,0.00039999,31]
[367010502,1750617949487,-4296.53855806,0.00039999,31]
[367010503,1750617949514,-4296.53855806,0.00039999,31]
[367010504,1750617949544,-4296.53855806,0.00039999,31]
[367010505,1750617949572,-4296.53855806,0.00039999,31]
[367010506,1750617949599,-4296.53855806,0.00039999,31]
[367010507,1750617949627,-4296.53855806,0.00039999,31]
[367010508,1750617949654,-4296.53855806,0.00039999,31]
[367010509,1750617949681,-4296.53855806,0.00039999,31]
[367010510,1750617949707,-500.0,0.00039999,31]
[367010511,1750617949735,-4296.53855806,0.00039999,31]
[367010512,1750617949765,-4296.53855806,0.00039999,31]
[367010513,1750617949791,-500.0,0.00039999,31]
[367010514,1750617949820,-168.41153922,0.00039999,31]
[367010515,1750617949847,-654.47529905,0.00039999,31]
[367010516,1750617949873,-4726.19241385,0.00039999,31]
[367010517,1750617949899,-654.47529905,0.00039999,31]
[367010518,1750617949926,-654.47529905,0.00039999,31]
[367010519,1750617949952,-654.47529905,0.00039999,31]
[367010520,1750617949978,-654.47529905,0.00039999,31]
[367010521,1750617950006,-654.47529905,0.00039999,31]
[367010522,1750617950032,-4726.19241385,0.00039999,31]
[367010523,1750617950058,-654.47529905,0.00039999,31]
[367010524,1750617950083,-654.47529905,0.00039999,31]
[367010525,1750617950109,-654.47529905,0.00039999,31]
[367010526,1750617950134,-654.47529905,0.00039999,31]
[367010527,1750617950159,-654.47529905,0.00039999,31]
[367010528,1750617950184,-654.47529905,0.00039999,31]
[367010529,1750617950210,-654.47529905,0.00039999,31]
[367010530,1750617950236,-654.47529905,0.00039999,31]
[367010531,1750617950262,-654.47529905,0.00039999,31]
[367010532,1750617950288,-654.47529905,0.00039999,31]
[367010533,1750617950313,-654.47529905,0.00039999,31]
[367010534,1750617950339,-654.47529905,0.00039999,31]
[367010535,1750617950366,-654.47529905,0.00039999,31]
[367010536,1750617950391,-654.47529905,0.00039999,31]
[367010537,1750617950417,-654.47529905,0.00039999,31]
[367010538,1750617950447,-654.47529905,0.00039999,31]
[367010539,1750617950473,-654.47529905,0.00039999,31]
[367010540,1750617950499,-654.47529905,0.00039999,31]
[367010541,1750617950527,-654.47529905,0.00039999,31]
[367010542,1750617950552,-654.47529905,0.00039999,31]
[367010543,1750617950579,-654.47529905,0.00039999,31]
[367010544,1750617950606,-654.47529905,0.00039999,31]
[367010545,1750617950632,-654.47529905,0.00039999,31]
[367010546,1750617950659,-654.47529905,0.00039999,31]
[367010547,1750617950687,-654.47529905,0.00039999,31]
[367010548,1750617950714,-654.47529905,0.00039999,31]
[367010549,1750617950741,-50000.0,0.0004,40]
[367010550,1750617950768,-2013.07,0.0004,120]
[367010551,1750617950793,-4600.0,0.0004,120]
[367010552,1750617950819,-1000.0,0.0004,120]
[367010553,1750617950843,-1000.0,0.0004,120]
[367010554,1750617950869,-1000.0,0.0004,120]
[367010555,1750617950893,-1000.0,0.0004,120]
[367010556,1750617950917,-477.12749073,0.0004,30]
[367010557,1750617950940,-950.26082214,0.0004,120]
[367010558,1750617950964,-690.12556528,0.0004,120]
[367010559,1750617950990,-201.05122219,0.0004,30]
[367010560,1750617951015,-719.4454929,0.0004,120]
[367010561,1750617951039,-2287.0077456,0.0004,120]
[367010562,1750617951063,-337.43427604,0.0004,120]
[367010563,1750617951087,-10068.23408792,0.0004,60]
[367010564,1750617951108,-159.82890321,0.0004,120]
[367010565,1750617951129,-9380.7472,0.0004,30]
[367010566,1750617951150,-209.92246519,0.0004,120]
[367010567,1750617951175,-245.72051973,0.0004,60]
[367010568,1750617951201,-699.18784389,0.0004,30]
[367010569,1750617951226,-1569.63593088,0.0004,120]
[367010570,1750617951252,-690.89227792,0.0004,30]
[367010571,1750617951276,-500.0,0.0004,30]
[367010572,1750617951301,-970.42963994,0.0004,120]
[367010573,1750617951326,-2000.0,0.0004,60]
[367010574,1750617951351,-207.87,0.0004,120]
[367010575,1750617951378,-1000.0,0.0004,120]
[367010576,1750617951404,-20000.0,0.0004,120]
[367010577,1750617951430,-871.28113136,0.0004,120]
[367010578,1750617951460,-697.3201005,0.0004,120]
[367010579,1750617951487,-1000.0,0.0004,120]
[367010580,1750617951515,-933.99,0.0004,120]
[367010581,1750617951542,-2299.62,0.0004,120]
[367010582,1750617951569,-15000.0,0.0004,120]
[367010583,1750617951599,-12500.0,0.0004,120]
[367010584,1750617951635,-10000.0,0.0004,120]
[367010585,1750617951660,-10000.0,0.0004,120]
[367010586,1750617951686,-10000.0,0.0004,120]
[367010587,1750617951712,-10000.0,0.0004,120]
[367010588,1750617951739,-10000.0,0.0004,120]
[367010589,1750617951766,-2537.82054322,0.0004,120]
[367010590,1750617951801,-224.57,0.0004,120]
[367010591,1750617951836,-1068.50722,0.00040088,30]
[367010592,1750617951862,-3639.3172198,0.000401,120]
[367010593,1750617951888,-15000.0,0.000401,120]
[367010594,1750617951913,-207.0,0.0004017,30]
[367010595,1750617951939,-1708.68,0.0004018,90]
[367010596,1750617951966,-15000.0,0.000402,120]
[367010597,1750617951993,-150.0,0.00040238,120]
[367010598,1750617952018,-12500.0,0.0004025,120]
[367010599,1750617952043,-500.0,0.00040273,60]
[367010600,1750617952100,-1068.50722,0.00040288,30]
[367010601,1750617952125,-15000.0,0.000403,120]
[367010602,1750617952150,-2110.0,0.00040356,30]
[367010603,1750617952425,-15000.0,0.000404,120]
[367010604,1750617952454,-1000.0,0.00040444,33]
[367010605,1750617952479,-1068.50722,0.00040488,30]
[367010606,1750617952507,-3258.29170455,0.000405,120]
[367010607,1750617952534,-15000.0,0.000405,120]
[367010608,1750617952560,-12500.0,0.000405,120]
[367010609,1750617952618,-1000.0,0.0004055,120]
[367010610,1750617952645,-15000.0,0.000406,120]
[367010611,1750617952671,-1068.50722,0.00040688,30]
[367010612,1750617952698,-15000.0,0.000407,120]
[367010613,1750617952724,-12500.0,0.0004075,120]
[367010614,1750617952752,-15000.0,0.000408,120]
[367010615,1750617952778,-1300.0,0.00040821,60]
[367010616,1750617952832,-500.0,0.00040821,60]
[367010617,1750617952857,-500.0,0.00040822,120]
[367010618,1750617952883,-500.0,0.00040822,120]
[367010619,1750617952908,-198.89188358,0.00040822,120]
[367010620,1750617952934,-202.757602,0.00040822,120]
[367010621,1750617952960,-500.0,0.00040822,120]
[367010622,1750617952985,-500.0,0.00040822,120]
[367010623,1750617953010,-150.0,0.00040822,120]
[367010624,1750617953034,-500.0,0.00040822,120]
[367010625,1750617953058,-150.0,0.00040822,120]
[367010626,1750617953082,-150.0,0.00040822,120]
[367010627,1750617953107,-150.0,0.00040822,120]
[367010628,1750617953133,-150.0,0.00040822,120]
[367010629,1750617953157,-500.0,0.00040822,120]
[367010630,1750617953181,-500.0,0.00040822,120]
[367010631,1750617953206,-500.0,0.00040822,120]
[367010632,1750617953230,-150.0,0.00040822,120]
[367010633,1750617953255,-150.0,0.00040822,120]
[367010634,1750617953279,-177.62449026,0.00040822,120]
[367010635,1750617953303,-153.2539826,0.00040822,120]
[367010636,1750617953327,-150.0,0.00040822,120]
[367010637,1750617953351,-150.0,0.00040822,60]
[367010638,1750617953375,-153.5086134,0.00040822,120]
[367010639,1750617953400,-150.89217555,0.00040822,120]
[367010640,1750617953424,-150.0,0.00040822,120]
[367010641,1750617953450,-935.0,0.00040822,120]
[367010642,1750617953475,-500.0,0.00040822,120]
[367010643,1750617953503,-500.0,0.00040822,120]
[367010644,1750617953529,-150.0,0.00040822,120]
[367010645,1750617953557,-500.0,0.00040822,120]
[367010646,1750617953583,-500.0,0.00040822,120]
[367010647,1750617953609,-150.0,0.00040822,120]
[367010648,1750617953634,-150.0,0.00040822,120]
[367010649,1750617953659,-500.0,0.00040822,101]
[367010650,1750617953685,-150.0,0.00040822,120]
[367010651,1750617953711,-500.0,0.00040822,120]
[367010652,1750617953735,-150.0,0.00040822,120]
[367010653,1750617953762,-500.0,0.00040822,120]
[367010654,1750617953789,-150.0,0.00040822,120]
[367010655,1750617953815,-219.52548528,0.00040822,120]
[367010656,1750617953840,-150.0,0.00040822,120]
[367010657,1750617953865,-500.99245321,0.00040849,120]
[367010658,1750617953890,-500.0,0.00040849,120]
[367010659,1750617953914,-500.68412876,0.00040849,120]
[367010660,1750617953939,-500.0,0.00040849,120]
[367010661,1750617953963,-150.46444261,0.00040849,120]
[367010662,1750617953987,-500.0,0.00040849,120]
[367010663,1750617954011,-150.0,0.00040849,120]
[367010664,1750617954038,-150.0,0.00040849,120]
[367010665,1750617954064,-196.07684651,0.00040849,120]
[367010666,1750617954091,-150.0,0.00040849,120]
[367010667,1750617954119,-500.0,0.00040849,120]
[367010668,1750617954145,-500.0,0.00040849,120]
[367010669,1750617954174,-500.0,0.00040849,120]
[367010670,1750617954200,-152.53157968,0.00040849,120]
[367010671,1750617954226,-150.0,0.00040849,120]
[367010672,1750617954253,-150.0,0.00040849,120]
[367010673,1750617954279,-150.0,0.00040849,60]
[367010674,1750617954305,-150.0,0.00040849,120]
[367010675,1750617954332,-935.0,0.00040849,120]
[367010676,1750617954359,-605.2209032,0.00040849,120]
[367010677,1750617954385,-521.14021212,0.00040849,120]
[367010678,1750617954412,-150.0,0.00040849,120]
[367010679,1750617954440,-500.0,0.00040849,120]
[367010680,1750617954470,-500.0,0.00040849,120]
[367010681,1750617954496,-237.37652561,0.00040849,120]
[367010682,1750617954524,-150.0,0.00040849,120]
[367010683,1750617954551,-500.0,0.00040849,101]
[367010684,1750617954579,-150.0,0.00040849,120]
[367010685,1750617954607,-500.0,0.00040849,120]
[367010686,1750617954635,-150.0,0.00040849,120]
[367010687,1750617954662,-500.0,0.00040849,120]
[367010688,1750617954689,-150.0,0.00040849,120]
[367010689,1750617954714,-150.0,0.00040849,120]
[367010690,1750617954740,-551.42,0.00040856,30]
[367010691,1750617954766,-500.0,0.00040877,120]
[367010692,1750617954792,-500.0,0.00040877,120]
[367010693,1750617954819,-180.9730098,0.00040877,120]
[367010694,1750617954846,-150.0,0.00040877,120]
[367010695,1750617954873,-150.0,0.00040877,120]
[367010696,1750617954900,-150.9151092,0.00040877,120]
[367010697,1750617954926,-500.0,0.00040877,120]
[367010698,1750617954952,-402.79956233,0.00040877,120]
[367010699,1750617954978,-500.0,0.00040877,120]
[367010700,1750617955005,-150.0,0.00040877,120]
[367010701,1750617955032,-150.0,0.00040877,120]
[367010702,1750617955057,-150.0,0.00040877,60]
[367010703,1750617955083,-150.0,0.00040877,120]
[367010704,1750617955108,-935.0,0.00040877,120]
[367010705,1750617955391,-150.0,0.00040877,120]
[367010706,1750617955418,-500.0,0.00040877,120]
[367010707,1750617955448,-500.0,0.00040877,120]
[367010708,1750617955476,-254.24211024,0.00040877,120]
[367010709,1750617955505,-153.36629011,0.00040877,101]
[367010710,1750617955532,-150.92398456,0.00040877,120]
[367010711,1750617955559,-156.81651833,0.00040877,120]
[367010712,1750617955585,-150.0,0.00040877,120]
[367010713,1750617955611,-150.0,0.00040877,120]
[367010714,1750617955637,-150.47888711,0.00040877,120]
[367010715,1750617955663,-11253.0,0.0004088,120]
[367010716,1750617955689,-1068.50722,0.00040888,30]
[367010717,1750617955716,-15000.0,0.000409,120]
[367010718,1750617955742,-351.44140873,0.00040904,120]
[367010719,1750617955767,-150.0,0.00040904,120]
[367010720,1750617955793,-150.48351388,0.00040904,120]
[367010721,1750617955820,-221.89726734,0.00040904,120]
[367010722,1750617955846,-500.0,0.00040904,120]
[367010723,1750617955872,-150.0,0.00040904,120]
[367010724,1750617955898,-150.0,0.00040904,120]
[367010725,1750617955922,-195.69895129,0.00040904,60]
[367010726,1750617955947,-200.0,0.00040904,120]
[367010727,1750617955972,-935.0,0.00040904,120]
[367010728,1750617955997,-231.28295343,0.00040904,120]
[367010729,1750617956023,-500.0,0.00040904,120]
[367010730,1750617956048,-500.0,0.00040904,120]
[367010731,1750617956073,-150.0,0.00040904,120]
[367010732,1750617956099,-200.79857448,0.00040932,120]
[367010733,1750617956124,-508.57790422,0.00040932,120]
[367010734,1750617956150,-257.26117849,0.00040932,120]
[367010735,1750617956175,-935.0,0.00040932,120]
[367010736,1750617956201,-500.0,0.00040932,120]
[367010737,1750617956228,-500.0,0.00040932,120]
[367010738,1750617956255,-251.3501143,0.00040932,120]
[367010739,1750617956280,-31792.49153804,0.00040955,120]
[367010740,1750617956307,-935.0,0.00040959,120]
[367010741,1750617956333,-500.0,0.00040959,120]
[367010742,1750617956359,-500.0,0.00040959,120]
[367010743,1750617956387,-935.0,0.00040986,120]
[367010744,1750617956415,-500.0,0.00040986,120]
[367010745,1750617956448,-500.0,0.00040986,120]
[367010746,1750617956481,-50000.0,0.00041,41]
[367010747,1750617956508,-625.00126463,0.00041,33]
[367010748,1750617956539,-195.46387469,0.00041,120]
[367010749,1750617956566,-1744.87896213,0.00041,120]
[367010750,1750617956592,-697.66875162,0.00041,120]
[367010751,1750617956619,-1192.64100168,0.00041,120]
[367010752,1750617956646,-7311.0,0.00041,120]
[367010753,1750617956671,-2432.70519809,0.00041,120]
[367010754,1750617956697,-12500.0,0.00041,120]
[367010755,1750617956724,-15000.0,0.00041,120]
[367010756,1750617956752,-150.0,0.00041006,120]
[367010757,1750617956779,-935.0,0.00041014,120]
[367010758,1750617956807,-500.0,0.00041014,120]
[367010759,1750617956833,-500.0,0.00041014,120]
[367010760,1750617956858,-935.0,0.00041041,120]
[367010761,1750617956884,-500.0,0.00041041,120]
[367010762,1750617956910,-500.0,0.00041041,120]
[367010763,1750617956934,-935.0,0.00041069,120]
[367010765,1750617956960,-500.0,0.00041069,120]
[367010766,1750617956986,-500.0,0.00041069,120]
[367010767,1750617957013,-1068.50722,0.00041088,30]
[367010768,1750617957039,-490.0,0.00041095,120]
[367010769,1750617957064,-490.0,0.00041095,120]
[367010770,1750617957090,-16485.72,0.00041095,120]
[367010771,1750617957116,-1546.167924,0.00041095,120]
[367010772,1750617957141,-3709.237641,0.00041095,120]
[367010773,1750617957167,-160.640823,0.00041095,120]
[367010774,1750617957193,-176.630363,0.00041095,120]
[367010775,1750617957219,-160.640823,0.00041095,120]
[367010776,1750617957244,-562.75,0.00041095,120]
[367010777,1750617957269,-656.11,0.00041095,120]
[367010778,1750617957294,-888.6,0.00041095,120]
[367010779,1750617957320,-1203.39,0.00041095,120]
[367010780,1750617957345,-490.0,0.00041095,120]
[367010781,1750617957370,-670.26,0.00041095,120]
[367010782,1750617957395,-8220.607738,0.00041095,120]
[367010783,1750617957420,-817.51,0.00041095,120]
[367010784,1750617957449,-699.53,0.00041095,120]
[367010785,1750617957474,-940.62,0.00041095,30]
[367010787,1750617957501,-512.07,0.00041095,120]
[367010788,1750617957527,-256.42527991,0.00041095,120]
[367010789,1750617957553,-888.17,0.00041095,120]
[367010791,1750617957580,-1188.78,0.00041095,120]
[367010792,1750617957606,-1208.56,0.00041095,120]
[367010794,1750617957632,-516.34,0.00041095,120]
[367010796,1750617957660,-176.630364,0.00041095,120]
[367010797,1750617957687,-1463.84,0.00041095,120]
[367010799,1750617957713,-490.0,0.00041095,120]
[367010800,1750617957742,-490.0,0.00041095,120]
[367010801,1750617957770,-409.23018991,0.00041095,120]
[367010803,1750617957798,-373.663988,0.00041095,120]
[367010804,1750617957824,-733.0,0.00041095,75]
[367010806,1750617957852,-848.58,0.00041095,120]
[367010807,1750617957879,-622.63,0.00041095,120]
[367010808,1750617957905,-569.23,0.00041095,120]
[367010809,1750617957931,-1057.34,0.00041095,120]
[367010810,1750617957957,-960.62,0.00041095,120]
[367010811,1750617957983,-272.90700408,0.00041095,120]
[367010813,1750617958010,-1038.15,0.00041095,120]
[367010814,1750617958036,-937.69,0.00041095,120]
[367010815,1750617958062,-1212.11,0.00041095,120]
[367010816,1750617958087,-1017.78,0.00041095,120]
[367010817,1750617958112,-554.3,0.00041095,120]
[367010819,1750617958395,-937.5,0.00041095,120]
[367010820,1750617958423,-490.0,0.00041095,120]
[367010821,1750617958450,-582.85,0.00041095,120]
[367010822,1750617958479,-841.2,0.00041095,120]
[367010823,1750617958505,-1251.91,0.00041095,120]
[367010824,1750617958533,-843.87,0.00041095,120]
[367010825,1750617958558,-913.81,0.00041095,120]
[367010826,1750617958584,-704.03,0.00041095,120]
[367010827,1750617958610,-573.69,0.00041095,120]
[367010828,1750617958636,-545.62,0.00041095,120]
[367010829,1750617958663,-704.71,0.00041095,120]
[367010830,1750617958688,-519.3,0.00041095,120]
[367010831,1750617958713,-696.79,0.00041095,120]
[367010832,1750617958739,-649.0,0.00041095,120]
[367010833,1750617958765,-1947.15,0.00041095,120]
[367010834,1750617958790,-643.07,0.00041095,120]
[367010835,1750617958815,-150.574571,0.00041095,120]
[367010836,1750617958841,-674.38,0.00041095,120]
[367010837,1750617958867,-1732.58,0.00041095,120]
[367010838,1750617958892,-332.02734285,0.00041095,120]
[367010839,1750617958918,-1301.68,0.00041095,120]
[367010840,1750617958945,-1703.66,0.00041095,120]
[367010841,1750617958970,-1138.32,0.00041095,120]
[367010842,1750617958997,-490.0,0.00041095,120]
[367010843,1750617959022,-535.24,0.00041095,120]
[367010844,1750617959048,-1256.44,0.00041095,120]
[367010845,1750617959075,-656.93,0.00041095,120]
[367010846,1750617959103,-186.28903675,0.00041095,120]
[367010847,1750617959130,-1702.63,0.00041095,120]
[367010848,1750617959156,-520.44,0.00041095,120]
[367010849,1750617959184,-769.06,0.00041095,120]
[367010850,1750617959210,-490.0,0.00041095,120]
[367010851,1750617959236,-896.61,0.00041095,120]
[367010852,1750617959263,-1108.87,0.00041095,120]
[367010853,1750617959289,-646.21,0.00041095,120]
[367010854,1750617959315,-757.66,0.00041095,120]
[367010855,1750617959341,-654.76,0.00041095,120]
[367010856,1750617959366,-490.0,0.00041095,120]
[367010857,1750617959392,-1103.6,0.00041095,120]
[367010858,1750617959417,-2242.79,0.00041095,120]
[367010859,1750617959443,-1705.17,0.00041095,120]
[367010860,1750617959471,-1008.17,0.00041095,120]
[367010861,1750617959496,-610.32,0.00041095,120]
[367010862,1750617959521,-1003.86,0.00041095,120]
[367010863,1750617959548,-1189.75,0.00041095,120]
[367010864,1750617959575,-598.76257316,0.00041095,120]
[367010865,1750617959600,-490.0,0.00041095,30]
[367010866,1750617959625,-512.89338925,0.00041095,30]
[367010867,1750617959651,-490.0,0.00041095,120]
[367010868,1750617959676,-1180.53,0.00041095,120]
[367010869,1750617959701,-1116.35,0.00041095,120]
[367010870,1750617959728,-1808.91,0.00041095,120]
[367010871,1750617959754,-497.21,0.00041095,120]
[367010872,1750617959779,-832.77,0.00041095,120]
[367010873,1750617959804,-490.62,0.00041095,120]
[367010874,1750617959831,-1962.92,0.00041095,120]
[367010875,1750617959856,-471.61264396,0.00041095,120]
[367010876,1750617959881,-828.36,0.00041095,120]
[367010877,1750617959906,-1251.26,0.00041095,120]
[367010878,1750617959931,-1628.34,0.00041095,120]
[367010879,1750617959958,-626.26,0.00041095,120]
[367010880,1750617959984,-744.1,0.00041095,120]
[367010881,1750617960010,-543.46,0.00041095,60]
[367010882,1750617960038,-493.53672547,0.00041095,120]
[367010883,1750617960065,-2052.94,0.00041095,120]
[367010884,1750617960092,-423.95152861,0.00041095,120]
[367010885,1750617960118,-897.64,0.00041095,120]
[367010886,1750617960144,-861.9,0.00041095,120]
[367010887,1750617960170,-1263.01,0.00041095,120]
[367010888,1750617960197,-1298.39,0.00041095,120]
[367010889,1750617960223,-723.72,0.00041095,120]
[367010890,1750617960250,-1514.53,0.00041095,120]
[367010891,1750617960276,-846.73,0.00041095,120]
[367010892,1750617960304,-1687.99,0.00041095,120]
[367010893,1750617960330,-844.43,0.00041095,120]
[367010894,1750617960355,-1922.56,0.00041095,120]
[367010895,1750617960381,-620.32,0.00041095,120]
[367010896,1750617960406,-581.21979367,0.00041095,120]
[367010897,1750617960431,-3009.11,0.00041095,120]
[367010898,1750617960461,-1325.89,0.00041095,120]
[367010899,1750617960487,-891.88,0.00041095,120]
[367010900,1750617960514,-490.0,0.00041095,120]
[367010901,1750617960543,-2035.89,0.00041095,120]
[367010902,1750617960572,-640.48,0.00041095,120]
[367010903,1750617960601,-1629.11,0.00041095,120]
[367010904,1750617960627,-2442.2,0.00041095,120]
[367010905,1750617960654,-1042.11,0.00041095,120]
[367010906,1750617960682,-809.48,0.00041095,120]
[367010907,1750617960708,-927.14,0.00041095,120]
[367010908,1750617960735,-199.41731515,0.00041095,120]
[367010909,1750617960763,-1969.96,0.00041095,120]
[367010910,1750617960791,-1774.41,0.00041095,120]
[367010911,1750617960817,-742.66,0.00041095,120]
[367010912,1750617960843,-805.81,0.00041095,120]
[367010913,1750617960868,-1884.21,0.00041095,120]
[367010914,1750617960894,-1708.01,0.00041095,120]
[367010915,1750617960920,-490.0,0.00041095,120]
[367010916,1750617960946,-824.15,0.00041095,120]
[367010917,1750617960971,-2200.63,0.00041095,120]
[367010918,1750617960999,-1751.88,0.00041095,120]
[367010919,1750617961024,-878.92,0.00041095,120]
[367010920,1750617961052,-575.98,0.00041095,120]
[367010921,1750617961078,-1377.73,0.00041095,120]
[367010922,1750617961103,-528.3,0.00041095,120]
[367010923,1750617961128,-1137.65,0.00041095,120]
[367010924,1750617961154,-1119.85,0.00041095,120]
[367010925,1750617961415,-2335.52,0.00041095,120]
[367010926,1750617961445,-1169.86,0.00041095,120]
[367010927,1750617961471,-1341.51,0.00041095,120]
[367010928,1750617961498,-1716.3,0.00041095,120]
[367010929,1750617961525,-895.27,0.00041095,120]
[367010930,1750617961555,-2288.55,0.00041095,120]
[367010931,1750617961581,-988.98,0.00041095,120]
[367010932,1750617961609,-682.99,0.00041095,120]
[367010933,1750617961635,-585.98,0.00041095,120]
[367010934,1750617961662,-589.49,0.00041095,120]
[367010935,1750617961688,-1012.9,0.00041095,120]
[367010936,1750617961716,-1264.04,0.00041095,120]
[367010937,1750617961743,-558.09,0.00041095,120]
[367010938,1750617961771,-677.01,0.00041095,120]
[367010939,1750617961796,-986.8,0.00041095,120]
[367010940,1750617961822,-1079.64,0.00041095,120]
[367010941,1750617961848,-1159.54,0.00041095,120]
[367010942,1750617961874,-1154.07,0.00041095,120]
[367010943,1750617961901,-1056.77,0.00041095,120]
[367010944,1750617961926,-300.0,0.00041095,120]
[367010945,1750617961952,-1558.15,0.00041095,120]
[367010946,1750617961977,-1633.93,0.00041095,120]
[367010947,1750617962004,-1212.28,0.00041095,120]
[367010948,1750617962033,-615.3,0.00041095,120]
[367010949,1750617962059,-2115.05,0.00041095,120]
[367010950,1750617962084,-632.61,0.00041095,120]
[367010951,1750617962110,-1267.3,0.00041095,120]
[367010952,1750617962136,-2328.65,0.00041095,120]
[367010953,1750617962162,-1887.27,0.00041095,120]
[367010954,1750617962187,-490.0,0.00041095,120]
[367010955,1750617962213,-1520.57,0.00041095,120]
[367010956,1750617962239,-857.73,0.00041095,120]
[367010957,1750617962271,-1699.21,0.00041095,120]
[367010958,1750617962298,-490.0,0.00041095,120]
[367010959,1750617962325,-1408.55,0.00041095,120]
[367010960,1750617962354,-778.68,0.00041095,120]
[367010961,1750617962383,-822.31,0.00041095,120]
[367010962,1750617962412,-862.05,0.00041095,120]
[367010963,1750617962441,-2514.86,0.00041095,120]
[367010964,1750617962480,-884.45,0.00041095,120]
[367010965,1750617962511,-1444.46,0.00041095,120]
[367010966,1750617962539,-1704.3,0.00041095,120]
[367010967,1750617962566,-829.79,0.00041095,120]
[367010968,1750617962593,-2129.87,0.00041095,120]
[367010969,1750617962622,-974.21,0.00041095,120]
[367010970,1750617962649,-3418.77,0.00041095,120]
[367010971,1750617962678,-490.0,0.00041095,120]
[367010972,1750617962705,-490.0,0.00041095,120]
[367010973,1750617962733,-906.17,0.00041095,120]
[367010974,1750617962763,-2036.74,0.00041095,120]
[367010975,1750617962790,-3365.95,0.00041095,120]
[367010976,1750617962818,-493.31,0.00041095,120]
[367010977,1750617962845,-1089.22,0.00041095,120]
[367010978,1750617962872,-490.0,0.00041095,120]
[367010979,1750617962898,-2433.96,0.00041095,120]
[367010980,1750617962925,-2885.12,0.00041095,120]
[367010981,1750617962951,-537.79,0.00041095,120]
[367010982,1750617962977,-975.12,0.00041095,120]
[367010983,1750617963004,-1462.28,0.00041095,120]
[367010984,1750617963031,-1316.22,0.00041095,120]
[367010985,1750617963059,-2797.07,0.00041095,120]
[367010986,1750617963087,-724.65,0.00041095,120]
[367010987,1750617963114,-985.11,0.00041095,120]
[367010988,1750617963141,-610.42,0.00041095,120]
[367010989,1750617963170,-1585.07,0.00041095,120]
[367010990,1750617963198,-2261.66,0.00041095,120]
[367010991,1750617963225,-913.26,0.00041095,120]
[367010992,1750617963251,-716.27,0.00041095,120]
[367010993,1750617963278,-2471.36,0.00041095,120]
[367010994,1750617963306,-1139.15,0.00041095,120]
[367010995,1750617963332,-1896.7,0.00041095,120]
[367010996,1750617963359,-2772.64,0.00041095,120]
[367010997,1750617963385,-3136.28,0.00041095,120]
[367010998,1750617963411,-1370.08,0.00041095,120]
[367010999,1750617963438,-1569.59,0.00041095,120]
[367011000,1750617963467,-1255.58,0.00041095,120]
[367011001,1750617963496,-2414.63,0.00041095,120]
[367011002,1750617963524,-1655.6,0.00041095,120]
[367011003,1750617963553,-1997.35,0.00041095,120]